{"text_format":"1","workbook":"xlsx","n_sheets":1,"sheets":["Sheet1"],"not_rendered":{"charts":0,"images":3,"macros":0,"external_links":0,"defined_names":1,"comments":0,"pivot_tables":0},"unopened":[],"bounds":{"document_bytes":16777216,"sheet_cells":100000,"rows_first":2000,"rows_last":500,"rows_between":2000,"halvings":0,"cell_chars":16384,"cell_head_chars":4096},"cells_cut":0,"cells_raw":0,"read":"whole","date_system":"1900"}

{"sheet":"Sheet1","index":0,"n_rows":44,"n_cols":10,"rows_kept":44,"cut":false,"hidden":false,"merged":[[43,1,43,8],[14,1,14,8],[8,3,8,6],[1,3,2,6],[42,1,42,8],[39,1,39,8],[3,3,3,6],[4,3,4,6],[5,3,5,6],[6,3,6,6],[13,1,13,8],[1,2,2,2]]}
[{"$f":"\"2017_Gyor_\"&I5&\"_\"&I2&\"_\"&I3","v":"2017_Gyor___"}]
[null,null,"Verseny neve:","EGYETEMI REGATTA 2022 (Székesfehérvári  Egyetemi Sárkányhajó Magyar Bajnokság, MEFOB)",null,null,null,"Intézmény neve:"]
[null,null,null,null,null,null,null,"Intézmény kódja:"]
[null,null,"Verseny helyszíne:","Székesfehérvár, Csónakázó-tó",null,null,null,"Csapatvezető (kapitány) neve:"]
[null,null,"Verseny dátuma:","2022. szeptember 23. (péntek)",null,null,null,"E-mail címe:"]
[null,null,"Rendező:","Magyar Sárkányhajó Szövetség",null,null,null,"Telefonszáma:"]
[null,null,"Szakmai támogató:","Magyar Egyetemi-Főiskolai Sportszövetség"]
[null,null,"Közreműködők","Pécsi Tudományegyetem, Dragon Aktív Kft."]
[null,null,"Versenyszámok:","200 és 2000 méter"]
[]
[null,"Kérünk minden adatot elektronikusan és hiánytalanul kitölteni és visszaküldeni e-mailben, EXCEL formátumban, a verseny időpontja előtt 2 nappal!",null,null,null,null,null,null,"nyilvantartas@sarkanyhajozas.hu"]
[null,"Nyomtatott, aláírt példányt, a versenyt megelőző technikai értekezleten kell leadni!"]
[]
[null,"A résztvevő kijelenti, hogy jó erőnléti és egészségi állapotban van, legalább 200 métert tud úszni könnyű sportfelszerelésben. A csapatvezető (kapitány) az aláírásával felel az adatok valódiságáért. "]
[null,"Minden más esetben előzetesen a rendezőket tájékoztatni kell, és a mentőmellényt kötelezően viselni kell a hajóban. A rendező, a mentőmellény viselését indoklás nélkül elrendelheti."]
[]
[null,"Nr.                             ","NÉV","NEPTUN KÓD","SZÜLETÉSI HELY","SZÜLETÉSI IDŐ\n(év/hónap/nap)","ANYJA NEVE","E-MAIL CÍM (megadása nem kötelező)","ALÁÍRÁS"]
[null,1,null,null,null,null,null,null,null,{"$f":"$A$1","v":"2017_Gyor___"}]
[null,2,null,null,null,null,null,null,null,"2017_Gyor___"]
[null,3,null,null,null,null,null,null,null,"2017_Gyor___"]
[null,4,null,null,null,null,null,null,null,"2017_Gyor___"]
[null,5,null,null,null,null,null,null,null,"2017_Gyor___"]
[null,6,null,null,null,null,null,null,null,"2017_Gyor___"]
[null,7,null,null,null,null,null,null,null,"2017_Gyor___"]
[null,8,null,null,null,null,null,null,null,"2017_Gyor___"]
[null,9,null,null,null,null,null,null,null,"2017_Gyor___"]
[null,10,null,null,null,null,null,null,null,"2017_Gyor___"]
[null,{"$f":"IF(\"10 fős open\"=$I$5,\"Tartalék\",11)","v":11},null,null,null,null,null,null,null,"2017_Gyor___"]
[null,{"$f":"IF(\"10 fős open\"=$I$5,\"Tartalék\",12)","v":12},null,null,null,null,null,null,null,"2017_Gyor___"]
[null,{"$f":"IF(\"10 fős open\"=$I$5,\"Kormányos\",13)","v":13},null,null,null,null,null,null,null,"2017_Gyor___"]
[null,{"$f":"IF(\"10 fős open\"=$I$5,\"Dobos\",14)","v":14},null,null,null,null,null,null,null,"2017_Gyor___"]
[null,{"$f":"IF(\"10 fős open\"=$I$5,\" \",15)","v":15},null,null,null,null,null,null,null,"2017_Gyor___"]
[null,{"$f":"IF(\"10 fős open\"=$I$5,\" \",16)","v":16},null,null,null,null,null,null,null,"2017_Gyor___"]
[null,{"$f":"IF(\"10 fős open\"=$I$5,\" \",17)","v":17},null,null,null,null,null,null,null,"2017_Gyor___"]
[null,{"$f":"IF(\"10 fős open\"=$I$5,\" \",18)","v":18},null,null,null,null,null,null,null,"2017_Gyor___"]
[null,{"$f":"IF(\"10 fős open\"=$I$5,\" \",19)","v":19},null,null,null,null,null,null,null,"2017_Gyor___"]
[null,{"$f":"IF(\"10 fős open\"=$I$5,\" \",20)","v":20},null,null,null,null,null,null,null,"2017_Gyor___"]
[null,{"$f":"IF(\"10 fős open\"=$I$5,\" \",\"Kormányos\")","v":"Kormányos"},null,null,null,null,null,null,null,"2017_Gyor___"]
[null,{"$f":"IF(\"10 fős open\"=$I$5,\" \",\"Dobos\")","v":"Dobos"},null,null,null,null,null,null,null,"2017_Gyor___"]
[null,"Hozzájárulok, hogy az Magyar Sárkányhajó Szövetség által vagy annak ellenőrzése alatt más által szervezett sárkányhajó sport és szabadidő rendezvényen a Magyar Sárkányhajó Szövetség vagy ezen tevékenységre megbízottja saját céljai megvalósítása érdekében személyes adataimat rögzítse, továbbá rólam képmást és hangfelvételt készítsen. Hozzájárulok továbbá ahhoz, hogy a Magyar Sárkányhajó Szövetség ezen képmásaimat és hangfelvételeimet közzé tegye, sokszorosítsa, egyéb módon felhasználja és személyes adataimat és ezen felvételeket a jogszabályban meghatározott módon és időtartamig vagy írásbeli visszavonásomig személyes adataimmal együtt tárolja. Tudomásul veszem, hogy tömegfelvétel és nyilvános közéleti szereplésemről készült felvétel esetén nincs szükség a hozzájárulásomra a képmás és hangfelvétel elkészítéséhez és az elkészített felvétel felhasználásához. A MEFOB-on való részvétellel személyes adatait az MSSZ a MEFS számára adatkezelés céljából átadja, melyet a MEFS az Európai Parlament és a Tanács (EU) 2016/679 rendelete alapján kezel. Az adatok kezelése kizárólag a versenyeredmények nyilvántartása miatt, speciális és jogos érdekből történik."]
[null,"Dátum:",null,null,null,null,null,"Csapatvezető (kapitány) aláírása:"]
[]
[null,"Magyar Sárkányhajó Szövetség | A Nemzeti Versenysport Szövetség alapító tagja"]
[null,"www.sarkanyhajozas.hu"]